bitfinex/quotes_SOLUSD_20241116
["timestamp","ask_amount","ask_price","bid_price","bid_amount"]
[1731772264847,258.16608044,214.72,214.71,93.81989387]
[1731772265140,501.7294556,214.72,214.71,93.81989387]
[1731772265339,501.7294556,214.72,214.71,113.81989387]
[1731772265529,340.8294556,214.72,214.71,174.8903248]
[1731772266336,340.8294556,214.72,214.71,202.43765248]
[1731772266337,243.56337516,214.72,214.71,202.43765248]
[1731772267335,243.56337516,214.72,214.71,268.89877603]
[1731772267524,182.09535186,214.72,214.71,161.7052291]
[1731772268044,182.09535186,214.72,214.71,161.6052291]
[1731772268348,182.09535186,214.72,214.71,117.8283451]
[1731772268641,182.09535186,214.72,214.71,130.19467397]
[1731772269017,182.09535186,214.72,214.71,159.28047903]
[1731772269543,182.44000648,214.72,214.71,159.28047903]
[1731772269752,182.44000648,214.72,214.71,191.49804021]
[1731772270130,243.41043741,214.72,214.71,191.49804021]
[1731772271548,263.41043741,214.72,214.71,111.85423166]
[1731772272127,263.41043741,214.72,214.71,110.96324204]
[1731772272534,263.41043741,214.72,214.6,0.1]
[1731772272535,28.65344862,214.71,214.68,42.25706501]
[1731772272850,0.12549,214.68,214.65,0.1]
[1731772273046,0.12549,214.68,214.67,0.1]
[1731772273254,0.21916462,214.68,214.67,56.44275335]
[1731772273628,0.34465462,214.68,214.67,56.44275335]
[1731772274779,61.31508555,214.68,214.67,56.34275335]
[1731772275657,141.27620593,214.68,214.67,56.34275335]
[1731772275849,117.49932193,214.68,214.67,56.34275335]
[1731772276037,80.305775,214.68,214.67,56.44275335]
[1731772276232,117.49932193,214.68,214.67,56.44275335]
[1731772276446,0.09367462,214.65,214.61,21.26181559]
[1731772276746,0.21916462,214.63,214.59,37.19354693]
[1731772277136,0.09367462,214.61,214.59,37.19354693]
[1731772277334,0.09367462,214.61,214.59,12.78078341]
[1731772277538,0.09367462,214.61,214.57,37.19354693]
[1731772277743,0.09367462,214.59,214.58,4.6601]
[1731772277958,28.04304876,214.59,214.58,4.6601]
[1731772278332,27.94937414,214.59,214.53,0.1]
[1731772278534,0.25098,214.66,214.58,37.19354693]
[1731772278734,0.09367462,214.65,214.6,37.19354693]
[1731772279541,0.09367462,214.65,214.61,4.6596]
[1731772279746,0.09367462,214.65,214.61,16.3086]
[1731772280357,140.74859944,214.7,214.65,20.0]
[1731772280654,140.74859944,214.7,214.69,57.19354693]
[1731772281337,140.74859944,214.7,214.69,101.16888312]
[1731772281545,140.74859944,214.7,214.69,143.6092211]
[1731772282076,140.74859944,214.7,214.69,143.5092211]
[1731772282670,140.74859944,214.7,214.69,181.24574473]
[1731772283086,140.74859944,214.7,214.69,228.41639926]
[1731772283270,140.74859944,214.7,214.69,191.22285233]
[1731772283582,140.74859944,214.7,214.69,233.67644141]
[1731772285276,140.96776406,214.7,214.69,213.67644141]
[1731772285589,140.96776406,214.7,214.69,171.28211778]
[1731772285590,141.09325406,214.7,214.69,171.28211778]
[1731772285956,141.09325406,214.7,214.69,127.30678159]
[1731772286159,141.09325406,214.7,214.69,84.85319251]
[1731772286670,0.34465462,214.7,214.69,84.85319251]
[1731772287580,0.09367462,214.74,214.7,0.1]
[1731772287781,37.19354693,214.71,214.7,0.1]
[1731772288084,37.19354693,214.73,214.69,59.18872379]
[1731772288259,37.19354693,214.76,214.74,0.1]
[1731772288583,37.19354693,214.83,214.72,42.88642379]
[1731772288584,42.28108125,214.77,214.72,42.88642379]
[1731772288778,28.25876957,214.74,214.72,80.07997072]
[1731772288946,37.19354693,214.78,214.72,80.07997072]
[1731772288947,28.25876957,214.73,214.72,80.07997072]
[1731772289173,28.25876957,214.74,214.73,4.657]
[1731772289363,28.25876957,214.74,214.73,24.657]
[1731772289949,28.25876957,214.74,214.73,48.533884]
[1731772290148,28.25876957,214.74,214.73,73.49304693]
[1731772290149,14.13653495,214.74,214.73,73.49304693]
[1731772290448,14.13653495,214.75,214.73,31.6425]
[1731772290644,21.80701977,214.74,214.73,68.83604693]
[1731772290852,52.95990516,214.74,214.73,92.71293093]
[1731772291155,52.95990516,214.74,214.73,92.81293093]
[1731772291553,42.42832706,214.78,214.76,0.1]
[1731772291761,42.42832706,214.78,214.77,37.19354693]
[1731772292759,98.18195643,214.82,214.77,37.19354693]
[1731772292760,42.42832706,214.79,214.78,0.1]
[1731772292961,42.42832706,214.79,214.78,81.07043093]
[1731772293361,42.42832706,214.8,214.78,97.36613093]
[1731772293663,56.57110275,214.83,214.8,20.1]
[1731772293869,56.57110275,214.83,214.82,20.0]
[1731772294037,42.51184368,214.84,214.82,20.0]
[1731772294545,42.51184368,214.84,214.8,0.1]
[1731772294859,0.09367462,214.84,214.81,16.2933]
[1731772295040,37.41271155,214.82,214.76,11.6407]
[1731772295262,37.28722155,214.77,214.76,11.6407]
[1731772295970,37.28722155,214.77,214.68,37.19354693]
[1731772295971,24.12153862,214.76,214.71,11.6431]
[1731772296269,37.19354693,214.83,214.66,61.84019839]
[1731772296270,98.50863248,214.73,214.66,61.84019839]
[1731772296644,98.50863248,214.73,214.67,4.6582]
[1731772296959,0.09367462,214.71,214.62,37.29354693]
[1731772297172,37.19354693,214.7,214.62,37.29354693]
[1731772297344,0.12549,214.72,214.64,37.19354693]
[1731772297345,37.19354693,214.72,214.64,37.19354693]
[1731772297668,37.19354693,214.72,214.65,20.0]
[1731772298045,37.19354693,214.72,214.61,39.7066]
[1731772298046,37.19354693,214.74,214.67,20.0]
[1731772298666,20.0,214.86,214.68,0.1]
[1731772298870,37.19354693,214.75,214.68,20.1]
[1731772299050,37.19354693,214.75,214.7,36.3017]
[1731772299250,37.19354693,214.75,214.72,20.0]
[1731772299764,37.19354693,214.83,214.71,37.09592533]
[1731772299765,0.25098,214.74,214.73,143.29889885]
[1731772299984,37.44452693,214.74,214.73,143.29889885]
[1731772300158,37.33566523,214.76,214.73,143.29889885]
[1731772300345,4.6549,214.83,214.74,0.12831035]
[1731772300551,4.6549,214.83,214.81,43.31542238]
[1731772300552,171.87723408,214.82,214.81,43.31542238]
[1731772300870,171.9709087,214.82,214.81,43.31542238]
[1731772301052,209.16445563,214.82,214.81,43.31542238]
[1731772301251,171.7199287,214.82,214.81,43.31542238]
[1731772301457,147.9430447,214.82,214.81,43.31542238]
[1731772301763,147.84937008,214.82,214.81,43.31542238]
[1731772302144,254.80423355,214.82,214.81,43.31542238]
[1731772302348,317.35014869,214.82,214.81,43.31542238]
[1731772303972,317.69480331,214.82,214.81,43.31542238]
[1731772304351,341.47168731,214.82,214.81,43.31542238]
[1731772306048,317.69480331,214.82,214.81,43.31542238]
[1731772306248,341.47168731,214.82,214.81,43.31542238]
[1731772306862,341.47168731,214.82,214.72,16.2996]
[1731772306863,28.77673862,214.81,214.72,16.2996]
[1731772307075,0.21916462,214.75,214.72,16.2996]
[1731772307287,163.57802648,214.74,214.72,16.2996]
[1731772307570,150.99510137,214.74,214.73,37.19354693]
[1731772307755,170.24294202,214.74,214.72,53.59314693]
[1731772307958,12.71447081,214.73,214.72,73.59314693]
[1731772308156,68.70052331,214.77,214.73,20.0]
[1731772308362,68.70052331,214.77,214.76,37.19354693]
[1731772308564,68.70052331,214.77,214.72,39.6857]
[1731772308565,68.70052331,214.77,214.75,20.0]
[1731772308970,37.19354693,214.81,214.75,20.0]
[1731772309564,37.19354693,214.81,214.76,16.2972]
[1731772309766,0.21916462,214.78,214.77,28.80164898]
[1731772310086,61.31508555,214.78,214.77,28.80164898]
[1731772310456,56.73896816,214.78,214.77,28.80164898]
[1731772310785,56.73896816,214.78,214.75,101.68404425]
[1731772310786,56.73896816,214.78,214.76,58.12613089]
[1731772310967,56.73896816,214.78,214.77,43.60142511]
[1731772311169,0.1,214.76,214.75,101.68404425]
[1731772311481,0.1,214.76,214.71,58.12613089]
[1731772311482,20.0,214.75,214.71,58.12613089]
[1731772311676,10.11283516,214.75,214.71,58.12613089]
[1731772311983,10.11283516,214.75,214.72,51.42485487]
[1731772312177,0.1,214.74,214.72,51.42485487]
[1731772312560,0.19367462,214.74,214.73,28.80164898]
[1731772312874,65.84629555,214.74,214.73,28.80164898]
[1731772313080,65.84629555,214.74,214.72,58.14834914]
[1731772313081,61.18959555,214.74,214.72,58.14834914]
[1731772313257,24.027864,214.73,214.68,72.68543642]
[1731772313457,37.19354693,214.69,214.68,72.68543642]
[1731772313680,0.1,214.77,214.68,72.68543642]
[1731772313681,4.6548,214.83,214.7,20.0]
[1731772313984,37.19354693,214.8,214.72,44.45907261]
[1731772314187,37.19354693,214.8,214.73,7.26552568]
[1731772314360,0.09367462,214.79,214.73,7.26552568]
[1731772314685,37.19354693,214.78,214.7,57.19354693]
[1731772314865,37.19354693,214.78,214.7,20.0]
[1731772315071,37.19354693,214.78,214.69,16.3024]
[1731772315384,0.12549,214.77,214.7,37.19354693]
[1731772315675,0.25098,214.77,214.71,16.301]
[1731772315879,23.902374,214.75,214.69,4.6577]
[1731772316059,37.19354693,214.7,214.66,16.43275562]
[1731772316389,37.19354693,214.72,214.66,16.3044]
[1731772316567,4.74947462,214.79,214.67,37.19354693]
[1731772316568,37.19354693,214.74,214.67,37.19354693]
[1731772316775,37.19354693,214.76,214.67,37.19354693]
[1731772317276,37.19354693,214.74,214.67,37.19354693]
[1731772317667,37.19354693,214.74,214.69,16.3024]
[1731772318081,0.12549,214.73,214.69,16.3024]
[1731772318287,0.25098,214.73,214.69,16.3024]
[1731772319481,37.19354693,214.76,214.69,16.3024]
[1731772319805,37.19354693,214.76,214.69,53.49594693]
[1731772319806,0.09367462,214.74,214.69,53.49594693]
[1731772319983,37.28722155,214.74,214.69,16.3024]
[1731772320170,0.25098,214.73,214.69,11.6446]
[1731772320670,37.19354693,214.72,214.69,11.6446]
[1731772320981,0.12549,214.71,214.65,37.19354693]
[1731772321179,37.19354693,214.7,214.61,37.19354693]
[1731772321387,0.12549,214.69,214.61,37.19354693]
[1731772321688,23.902374,214.69,214.61,37.19354693]
[1731772321865,37.19354693,214.68,214.62,16.3077]
[1731772322070,0.12549,214.64,214.62,11.6484]
[1731772322583,0.12549,214.64,214.62,16.3077]
[1731772322881,24.027864,214.64,214.58,4.6602]
[1731772323472,37.19354693,214.63,214.55,37.19354693]
[1731772323679,37.19354693,214.59,214.51,37.19354693]
[1731772323992,0.25098,214.58,214.52,16.3154]
[1731772324375,0.25098,214.6,214.55,37.19354693]
[1731772324590,24.027864,214.62,214.55,37.19354693]
[1731772324773,4.6588,214.65,214.52,16.3154]
[1731772324774,24.027864,214.64,214.57,37.19354693]
[1731772324993,37.19354693,214.59,214.52,16.3154]
[1731772325172,0.25098,214.6,214.53,37.19354693]
[1731772325374,0.25098,214.6,214.52,16.3154]
[1731772325580,37.19354693,214.59,214.52,16.3154]
[1731772325785,30.0,214.55,214.52,16.3154]
[1731772326876,30.0,214.55,214.53,20.0]
[1731772327092,30.0,214.55,214.53,57.19354693]
[1731772327411,0.09367462,214.6,214.53,57.19354693]
[1731772327692,0.09367462,214.6,214.56,20.0]
[1731772327889,30.0,214.58,214.56,20.0]
[1731772328102,0.09367462,214.6,214.57,4.6604]
[1731772329776,0.09367462,214.6,214.57,16.3116]
[1731772329978,4.6582,214.68,214.57,16.3116]
[1731772330297,0.09367462,214.67,214.57,53.5614203]
[1731772330505,0.09367462,214.67,214.57,16.3116]
[1731772330802,0.09367462,214.67,214.55,4.6607]
[1731772331102,0.1,214.66,214.55,4.6607]
[1731772331285,0.12549,214.65,214.55,4.6607]
[1731772331694,0.1,214.63,214.52,11.6535]
[1731772331897,20.22549,214.63,214.52,16.315]
[1731772332200,20.22549,214.63,214.52,11.6535]
[1731772332201,0.12549,214.59,214.52,11.6535]
[1731772333303,0.12549,214.59,214.53,37.2498203]
[1731772333488,0.25098,214.6,214.52,11.6535]
[1731772334401,4.7594,214.62,214.52,11.6535]
[1731772334402,24.6578,214.69,214.53,37.2498203]
[1731772334603,0.09367462,214.64,214.52,11.6535]
[1731772335285,0.1,214.62,214.52,11.6535]
[1731772335910,0.35098,214.6,214.48,16.3182]
[1731772336203,0.25098,214.56,214.48,11.656]
[1731772336501,24.027864,214.56,214.48,11.656]
[1731772336898,20.0,214.55,214.43,48.9083203]
[1731772337108,24.027864,214.54,214.43,48.9083203]
[1731772337297,24.027864,214.52,214.43,11.6585]
[1731772338180,4.6617,214.51,214.39,53.5749203]
[1731772338403,24.027864,214.5,214.41,37.2498203]
[1731772339303,28.689864,214.5,214.4,36.3245]
[1731772339492,28.689864,214.5,214.41,37.2498203]
[1731772339694,28.689864,214.5,214.37,23.3237]
[1731772339695,28.689864,214.5,214.37,37.2498203]
[1731772339891,28.689864,214.5,214.38,4.6644]
[1731772340094,28.689864,214.5,214.38,24.6644]
[1731772341016,28.689864,214.5,214.38,4.6644]
[1731772341187,28.690264,214.48,214.38,4.6644]
[1731772341392,28.564774,214.48,214.38,4.6644]
[1731772341600,0.12549,214.47,214.38,4.6644]
[1731772341802,0.12549,214.47,214.41,37.2498203]
[1731772342011,0.12549,214.47,214.43,37.2498203]
[1731772343201,0.12549,214.47,214.44,4.6633]
[1731772343707,0.12549,214.47,214.42,11.6589]
[1731772343918,0.12549,214.47,214.42,16.3226]
[1731772344094,0.12549,214.45,214.38,16.326]
[1731772344807,0.12549,214.45,214.38,11.6614]
[1731772345015,0.12549,214.45,214.35,37.2498203]
[1731772345016,0.12549,214.45,214.34,4.6653]
[1731772345214,24.027864,214.43,214.34,4.6653]
[1731772346017,24.027864,214.43,214.34,16.329]
[1731772346797,28.691364,214.43,214.34,16.329]
[1731772347209,0.25098,214.44,214.35,37.2498203]
[1731772347511,24.027864,214.44,214.35,37.2498203]
[1731772348212,28.691164,214.44,214.35,37.2498203]
[1731772348424,28.691164,214.44,214.34,16.329]
[1731772349494,24.227864,214.42,214.29,37.2498203]
[1731772349799,0.1,214.38,214.25,37.2498203]
[1731772350002,0.25098,214.37,214.25,37.2498203]
[1731772350214,24.127864,214.37,214.25,37.2498203]
[1731772350394,24.027864,214.37,214.25,37.2498203]
[1731772350901,24.027864,214.35,214.26,4.6672]
[1731772351108,24.027864,214.35,214.24,4.6676]
[1731772351396,0.1,214.34,214.22,16.3382]
[1731772351604,24.127864,214.35,214.22,16.3382]
[1731772351605,24.027864,214.35,214.22,16.3382]
[1731772351807,24.027864,214.35,214.25,22.98585753]
[1731772351997,0.25098,214.35,214.29,22.98585753]
[1731772352194,0.25098,214.35,214.22,39.6786]
[1731772352195,24.027864,214.37,214.27,22.98585753]
[1731772352501,159.7,214.49,214.22,39.6786]
[1731772352502,4.662,214.5,214.36,22.98585753]
[1731772352697,4.662,214.5,214.39,22.98585753]
[1731772352913,4.662,214.5,214.39,37.30314023]
[1731772353212,159.7,214.55,214.41,37.30314023]
[1731772353413,11.6519,214.56,214.43,37.30314023]
[1731772353414,4.6611,214.54,214.43,37.30314023]
[1731772353718,0.09367462,214.53,214.43,37.30314023]
[1731772353919,34.9484,214.61,214.39,16.3251]
[1731772353920,4.6602,214.58,214.46,20.0]
[1731772354216,4.7602,214.59,214.49,37.30314023]
[1731772354417,4.7602,214.59,214.45,37.30314023]
[1731772354418,0.1,214.57,214.45,37.30314023]
[1731772354601,4.6602,214.59,214.45,37.30314023]
[1731772354910,4.6602,214.59,214.39,76.95014023]
[1731772354911,4.6602,214.59,214.49,37.30314023]
[1731772355102,4.6602,214.59,214.49,53.62084023]
[1731772355298,4.6597,214.61,214.51,37.30314023]
[1731772355912,0.1,214.64,214.49,16.3177]
[1731772355913,4.659,214.64,214.53,37.30314023]
[1731772356113,159.7,214.69,214.49,16.3177]
[1731772356114,159.7,214.69,214.59,37.30314023]
[1731772356320,4.6572,214.72,214.61,37.30314023]
[1731772356523,0.1,214.76,214.62,20.0]
[1731772356703,4.6566,214.75,214.65,37.30314023]
[1731772356898,0.09367462,214.74,214.65,37.30314023]
[1731772357114,159.7,214.78,214.69,37.30314023]
[1731772357115,4.7561,214.78,214.69,37.30314023]
[1731772357309,4.6561,214.78,214.69,37.30314023]
[1731772357513,18.620797,214.81,214.71,37.30314023]
[1731772357514,4.6554,214.81,214.71,37.30314023]
[1731772358213,0.1,214.82,214.73,37.30314023]
[1731772358418,4.6549,214.83,214.75,37.30314023]
[1731772358419,4.7549,214.83,214.75,37.30314023]
[1731772358821,18.615626,214.86,214.73,37.30314023]
[1731772359000,18.615626,214.86,214.77,37.30314023]
[1731772359199,18.615626,214.86,214.79,37.30314023]
[1731772359418,18.615626,214.86,214.81,37.30314023]
[1731772359627,4.6531,214.91,214.81,37.30314023]
[1731772359812,0.09367462,214.9,214.81,37.30314023]
[1731772360118,0.1,214.99,214.87,14.36116831]
[1731772360119,108.80867823,214.97,214.87,14.36116831]
[1731772360329,0.1,214.99,214.88,14.36116831]
[1731772360330,0.0918673,214.96,214.88,14.36116831]
[1731772360513,0.1,214.94,214.89,14.36116831]
[1731772360704,0.1,214.94,214.86,29.06410996]
[1731772360705,0.1,214.94,214.88,14.36116831]
[1731772361020,0.1,214.94,214.82,43.30728147]
[1731772361021,4.6522,214.95,214.82,43.30728147]
[1731772361234,0.22549,214.92,214.79,0.1]
[1731772361519,0.25098,214.89,214.79,0.1]
[1731772361720,0.25098,214.89,214.79,37.40314023]
[1731772362222,20.35098,214.89,214.75,42.05964023]
[1731772362398,0.25098,214.85,214.74,0.1]
[1731772362602,0.25098,214.85,214.73,41.96004023]
[1731772362816,23.876884,214.84,214.71,53.60394023]
[1731772363022,0.25098,214.81,214.71,48.94654023]
[1731772363208,0.25098,214.81,214.71,11.6434]
[1731772363525,0.25098,214.81,214.74,0.1]
[1731772363823,0.25098,214.82,214.75,0.1]
[1731772364398,0.25098,214.82,214.72,0.1]
[1731772364603,0.25098,214.82,214.71,11.6434]
[1731772364604,23.776884,214.81,214.71,11.6434]
[1731772364842,0.25098,214.8,214.7,0.1]
[1731772365324,24.027864,214.78,214.68,0.1]
[1731772365999,4.6557,214.79,214.64,11.6468]
[1731772366000,24.027864,214.76,214.64,11.7468]
[1731772366309,24.027864,214.76,214.66,0.1]
[1731772366509,24.027864,214.76,214.65,37.30314023]
[1731772366914,24.027864,214.76,214.64,11.7468]
[1731772366915,24.027864,214.76,214.66,0.1]
[1731772367121,24.027864,214.74,214.66,0.1]
[1731772368205,0.25098,214.74,214.7,0.1]
[1731772368417,4.6556,214.8,214.72,0.1]
[1731772368809,7.17895127,214.88,214.76,0.1]
[1731772369017,4.7537,214.88,214.76,0.1]
[1731772369416,4.6537,214.88,214.76,0.1]
[1731772370010,4.6537,214.88,214.74,4.6567]
[1731772370215,20.0,214.86,214.74,4.6567]
[1731772370440,24.027864,214.85,214.74,4.6567]
[1731772370639,0.25098,214.83,214.74,4.6567]
[1731772370924,20.0,214.82,214.72,11.643]
[1731772371231,24.027864,214.81,214.72,11.643]
[1731772371608,23.902374,214.81,214.72,11.643]
[1731772372025,23.902374,214.81,214.72,16.3002]
[1731772372413,23.902374,214.81,214.72,11.643]
[1731772372414,20.0,214.8,214.72,11.643]
[1731772372715,23.902374,214.79,214.68,4.658]
[1731772372917,0.12549,214.78,214.69,37.30314023]
[1731772373731,0.25098,214.79,214.7,20.0]
[1731772374115,0.25098,214.79,214.71,53.60414023]
[1731772374323,0.25098,214.79,214.71,16.301]
[1731772375039,0.25098,214.79,214.73,37.30314023]
[1731772375331,0.25098,214.79,214.77,37.30314023]
[1731772375332,0.0918673,214.79,214.77,37.30314023]
[1731772375923,0.0918673,214.79,214.78,20.0]
[1731772376234,0.0918673,214.79,214.78,24.6559]
[1731772378235,0.0918673,214.79,214.78,61.81474681]
[1731772379119,0.0918673,214.79,214.78,4.6559]
[1731772380334,0.0918673,214.79,214.66,0.1]
[1731772380335,0.0918673,214.79,214.75,24.6563]
[1731772380539,0.2173573,214.79,214.75,24.6563]
[1731772380839,24.027864,214.78,214.72,11.6427]
[1731772381024,24.027864,214.76,214.72,11.6427]
[1731772381537,0.25098,214.78,214.72,16.2999]
[1731772381713,0.25098,214.78,214.74,37.15884681]
[1731772382324,0.25098,214.78,214.75,16.2979]
[1731772382745,0.25098,214.78,214.76,37.15884681]
[1731772383827,0.25098,214.78,214.77,4.6561]
[1731772384540,0.0918673,214.79,214.77,36.2964]
[1731772384740,0.0918673,214.79,214.78,57.15884681]
[1731772386643,0.0918673,214.79,214.78,80.93573081]
[1731772387140,0.0918673,214.79,214.78,81.13573081]
[1731772387450,0.0918673,214.79,214.78,20.93044984]
[1731772387621,0.0918673,214.79,214.78,57.15884681]
[1731772388617,0.0918673,214.79,214.77,16.2964]
[1731772388819,0.0918673,214.79,214.77,11.6403]
[1731772389635,0.0918673,214.79,214.76,22.88028304]
[1731772390142,0.0918673,214.79,214.78,22.88028304]
[1731772390648,0.0918673,214.79,214.78,42.88028304]
[1731772390822,0.0918673,214.79,214.78,47.53618304]
[1731772391334,0.0918673,214.79,214.78,27.53618304]
[1731772391522,0.0918673,214.79,214.78,47.53618304]
[1731772392630,0.0918673,214.79,214.78,71.31306704]
[1731772393348,8.71009905,215.01,214.78,71.31306704]
[1731772393349,22.88028304,214.95,214.78,71.41306704]
[1731772393524,22.88028304,214.95,214.88,22.88028304]
[1731772393730,4.6511,215.0,214.86,22.88028304]
[1731772393945,22.88028304,214.95,214.87,20.0]
[1731772394942,22.88028304,214.95,214.88,4.6537]
[1731772395147,27.53178304,214.99,214.9,22.88028304]
[1731772395528,27.53178304,214.99,214.91,20.0]
[1731772396227,27.53178304,214.99,214.91,24.6529]
[1731772396428,22.88028304,214.99,214.91,36.2856]
[1731772396625,0.5267188,215.01,214.94,22.88028304]
[1731772396843,0.5267188,215.01,214.96,22.88028304]
[1731772398123,0.5267188,215.01,214.99,20.0]
[1731772398647,0.5267188,215.01,214.89,0.1]
[1731772398648,0.25098,214.98,214.72,0.1]
[1731772398848,22.88028304,214.89,214.82,22.88028304]
[1731772399152,24.027864,214.9,214.73,4.657]
[1731772399153,0.25098,214.86,214.78,22.88028304]
[1731772399533,0.25098,214.86,214.8,22.88028304]
[1731772399748,0.25098,214.87,214.8,22.88028304]
[1731772400252,23.13126304,214.87,214.81,11.6381]
[1731772400747,0.25098,214.87,214.81,16.2933]
[1731772401255,0.25098,214.89,214.81,53.45343072]
[1731772401428,12.1543188,215.01,214.84,20.0]
[1731772401429,0.12549,214.91,214.84,20.0]
[1731772401853,0.5267188,215.01,214.81,16.2933]
[1731772401854,37.16013072,214.96,214.88,20.0]
[1731772402246,37.16013072,214.98,214.9,20.0]
[1731772403331,0.5267188,215.01,214.9,20.0]
[1731772403332,37.16013072,215.0,214.91,37.16013072]
[1731772403530,0.25098,214.99,214.92,20.0]
[1731772403726,37.16013072,215.0,214.92,20.0]
[1731772404244,37.16013072,215.0,214.93,4.6526]
[1731772404448,37.16013072,215.0,214.94,20.0]
[1731772405355,0.12549,214.99,214.94,36.2834]
[1731772405532,0.12549,215.0,214.94,36.2834]
[1731772405952,0.12549,215.0,214.95,37.16013072]
[1731772406139,0.12549,215.0,214.96,20.0]
[1731772406545,0.12549,215.0,214.94,16.2834]
[1731772406546,0.12549,215.0,214.95,20.0]
[1731772407251,0.12549,215.0,214.97,20.0]
[1731772407651,0.5267188,215.01,214.97,20.0]
[1731772408838,0.5267188,215.01,214.97,24.6517]
[1731772409253,0.12549,215.0,214.97,24.6517]
[1731772410151,0.12549,215.0,214.96,11.63]
[1731772410152,37.16013072,214.98,214.91,48.79243072]
[1731772410342,0.12549,214.95,214.91,11.6323]
[1731772410538,0.12549,214.91,214.88,4.6537]
[1731772410938,0.12549,214.91,214.88,16.2881]
[1731772411248,37.16013072,214.92,214.88,16.2881]
[1731772411450,0.25098,214.91,214.88,11.6344]
[1731772411830,37.16013072,214.9,214.83,48.79673072]
[1731772412040,0.12549,214.87,214.83,11.6366]
[1731772412362,37.16013072,214.88,214.83,16.2912]
[1731772412536,0.12549,214.89,214.83,16.2912]
[1731772412734,0.25098,214.89,214.83,16.2912]
[1731772412931,37.16013072,214.92,214.83,53.45133072]
[1731772413135,0.25098,214.91,214.85,37.16013072]
[1731772413333,0.12549,214.89,214.84,20.0]
[1731772414652,0.12549,214.89,214.85,4.6544]
[1731772415032,0.12549,214.87,214.84,20.0]
[1731772415243,0.25098,214.85,214.75,37.16013072]
[1731772415449,37.16013072,214.84,214.75,41.81663072]
[1731772416243,37.16013072,214.84,214.77,37.16013072]
[1731772416539,0.12549,214.85,214.77,37.16013072]
[1731772416739,0.12549,214.85,214.78,20.0]
[1731772417148,0.12549,214.85,214.8,20.0]
[1731772417935,4.6533,214.9,214.82,20.0]
[1731772417936,37.16013072,214.9,214.82,20.0]
[1731772418146,37.16013072,214.92,214.84,20.0]
[1731772418349,37.16013072,214.92,214.86,20.0]
[1731772418552,37.16013072,214.88,214.84,20.0]
[1731772418840,37.16013072,214.9,214.84,4.6545]
[1731772419046,37.16013072,214.92,214.84,24.6545]
[1731772419453,37.16013072,214.94,214.85,37.16013072]
[1731772419651,37.16013072,214.94,214.84,24.6545]
[1731772419652,37.16013072,214.98,214.9,20.0]
[1731772420366,37.16013072,214.98,214.91,16.2858]
[1731772420543,37.16013072,214.98,214.92,20.0]
[1731772420741,22.84458327,214.98,214.92,20.0]
[1731772421163,0.25098,214.97,214.92,20.0]
[1731772421360,11.6241,215.08,214.92,20.0]
[1731772421361,22.84458327,215.0,214.92,42.84458327]
[1731772421661,11.6212,215.13,214.95,20.0]
[1731772421662,22.84458327,215.02,214.95,20.0]
[1731772422452,22.84458327,215.02,214.97,20.0]
[1731772423354,22.84458327,215.04,214.97,20.0]
[1731772423551,22.84458327,215.06,214.97,20.0]
[1731772423948,22.84458327,215.06,214.98,22.84458327]
[1731772424150,22.84458327,215.06,214.99,20.0]
[1731772424349,22.84458327,215.06,215.0,4.6511]
[1731772427164,22.84458327,215.08,215.0,47.49568327]
[1731772427370,20.0,215.15,215.0,47.49568327]
[1731772427371,22.84458327,215.1,215.0,47.49568327]
[1731772427849,22.84458327,215.11,215.0,47.49568327]
[1731772428052,22.84458327,215.12,215.0,47.49568327]
[1731772428349,22.84458327,215.14,215.0,47.49568327]
[1731772428864,22.84458327,215.16,215.06,36.2744]
[1731772429067,22.84458327,215.16,215.09,22.84458327]
[1731772429268,22.84458327,215.14,215.06,36.2744]
[1731772429774,22.84458327,215.12,215.06,36.2744]
[1731772429951,0.25098,215.09,215.06,11.6246]
[1731772430267,22.84458327,215.08,215.06,11.6246]
[1731772430665,22.84458327,215.12,215.06,16.2744]
[1731772430865,0.25098,215.11,215.06,16.2744]
[1731772431073,0.25098,215.13,215.06,16.2744]
[1731772431278,0.25098,215.13,215.07,22.84458327]
[1731772431567,0.25098,215.13,215.08,20.0]